[Event "CCT Chessable Masters D-II 2024"]
[Site "Online"]
[Date "2024.02.06"]
[Round "6"]
[White "LevonAronian"]
[Black "Keymer, Vincent"]
[Result "0-1"]
[ECO "C54"]
[WhiteElo "2750"]
[BlackElo "2743"]
[Annotator "TA"]
[PlyCount "64"]
[EventDate "2024.01.12"]
[EventType "k.o."]
[EventCountry "NET"]
[SourceTitle "playchess.com"]
[Source "ChessBase"]
[SourceQuality "1"]
[TimeControl "600+2"]

{[%evp 22,64,25,16,20,20,20,10,10,0,0,-14,-22,-5,-11,-66,0,0,0,0,0,0,0,0,0,0,0,0,0,-435,-154,-725,-670,-698,-559,-860,-849,-858,-866,-1142,-778,-29982,-1273,-1196,-1177]} 1. e4 {[%emt 0:00:02]} e5 {[%emt 0:00:02]} 2. Nf3 {[%emt 0:00:01]} Nc6 {[%emt 0:00:01]} 3. Bc4 {[%emt 0:00:01]} Nf6 {[%emt 0:00:01]} 4. d3 {[%emt 0:00:01]} Bc5 {[%emt 0:00:00]} 5. O-O {[%emt 0:00:00]} a6 {[%emt 0:00:01]} 6. c3 {[%emt 0:00:06]} Ba7 {[%emt 0:00:02]} 7. Bb3 {[%emt 0:00:32]} d6 {[%emt 0:00:11]} 8. Re1 {[%emt 0:00:05]} O-O {[%emt 0:00:02]} 9. Nbd2 {[%emt 0:00:03]} h6 {[%emt 0:00:45]} 10. Nf1 {[%emt 0:00:03]} Be6 {[%emt 0:00:13] C54: Giuoco Piano: 4 c3 Nf6, main lines with 5 d4 and 5 d3.} 11. Bxe6 {[%emt 0:00:20]} fxe6 {[%emt 0:00:01]} 12. Be3 {[%emt 0:00:00]} Bxe3 {[%emt 0:00:10]} 13. Rxe3 {[%emt 0:00:00]} d5 $5 $146 {[%emt 0:01:22][%mdl 8] New and interesting.} ({Predecessor:} 13... Ne7 14. h3 Ng6 15. g3 Qd7 16. N1h2 Rf7 17. Qb3 b6 18. Rf1 Raf8 19. h4 a5 {½-½ Inarkiev,E (2686)-Vitiugov,N (2740) RUS-chT 25th 2018 (2.2)}) 14. Qb3 {[%emt 0:00:04]} Qd6 {[%emt 0:00:59]} 15. Rae1 {[%emt 0:00:09]} (15. Qxb7 $2 Rfb8 $19) 15... d4 {[%emt 0:00:56]} 16. cxd4 {[%emt 0:00:19]} exd4 {[%emt 0:00:02]} 17. R3e2 {[%emt 0:00:01]} Nh5 {[%emt 0:00:29]} 18. Rc2 {[%emt 0:00:47] [#]} (18. Qxb7 $2 Rfb8 $19) (18. Rc1 $11) 18... Rxf3 {[%emt 0:00:23]} ({Better is} 18... Nb4 $1 $15 19. Rc4 c5) 19. Qxb7 $1 $11 {[%emt 0:00:22]} (19. gxf3 Ne5 20. Ng3 (20. Qxb7 $2 Nxf3+ 21. Kh1 Rf8 $19) 20... Nxg3 (20... Nxf3+ $2 21. Kf1 $19) 21. hxg3 Nxf3+ 22. Kf1 Nxe1 23. Kxe1 b6 $16) 19... Nb4 $1 {[%emt 0:02:15]} 20. gxf3 {[%emt 0:00:25]} (20. Qxa8+ Rf8 21. e5 Qb6 $19 (21... Rxa8 $2 22. exd6 Nxc2 23. Rc1 $19)) 20... Qf8 $1 {[%emt 0:00:47]} 21. Rxc7 {[%emt 0:00:58]} Rb8 {[%emt 0:00:10]} 22. Qa7 {[%emt 0:00:02]} Nxd3 {[%emt 0:00:00]} 23. Rd1 {[%emt 0:00:28]} Ne5 {[%emt 0:00:01]} 24. Rdc1 {[%emt 0:00:44]} (24. Qxd4 $2 Nxf3+ 25. Kg2 Nxd4 $19) (24. Rxd4 Rxb2 (24... Nxf3+ $2 25. Kg2 $19) 25. Qc5 (25. Qxa6 $2 Kh7 $19) 25... Qxf3 (25... Nxf3+ $2 26. Kh1 $19) 26. Rd8+ (26. Qxe5 $2 Qxf2+ 27. Kh1 Qxf1#) 26... Kh7 $19) 24... Kh7 {[%emt 0:00:51]} 25. Qc5 $2 {[%emt 0:01:42][%mdl 8192]} (25. Qxd4 Nxf3+ 26. Kh1 Nxd4 27. Ne3 Qf3+ (27... Rxb2 28. Nf5 Nxf5 29. exf5 Qxf5 30. Rxg7+ Kxg7 31. Rc7+ Kf6 32. h4 Qh3+ 33. Kg1 Rb1+ 34. Rc1 Rxc1#) 28. Ng2 Nf4 (28... Rxb2 29. Rf7 Qxf7 30. Rf1 Rxf2 31. Nh4 Rxf1+ 32. Kg2 Qf4 33. Kh3 Qg5 34. Ng2 Rf3#) (28... Rxb2 29. Rf7 Qxf7 30. Rf1 Rxf2 31. Nh4 Rxf1+ 32. Kg2 Qf4 33. Kh3 Qg5 34. Ng2 Rf3#)) (25. Ng3 $1 $11 {and White has nothing to worry.} Nxf3+ (25... Nf4 26. Rxg7+ Qxg7 27. Rc7 $11) 26. Kg2 Nh4+ 27. Kf1) 25... Qf6 $2 {[%emt 0:00:02]} (25... Nxf3+ 26. Kh1 Ng5 27. Qxf8 (27. Qxd4 $2 Qf3+ 28. Kg1 Nh3#) 27... Rxf8 28. Rd7 Rxf2 29. Rxd4 $17) (25... Qf4 $19 {has better winning chances.} 26. Ng3 Rb5 (26... Nxf3+ 27. Kg2 $11) 27. Nxh5 Qg5+ (27... Nxf3+ $2 28. Kg2 $18) 28. Ng3 Rxc5 (28... Nxf3+ $2 29. Kf1 $19) 29. R7xc5 Nxf3+ 30. Kf1 Qg4 (30... Nxh2+ 31. Kg2 $11)) 26. Ng3 $2 {[%emt 0:00:27]} (26. Qe7 $17 Qf4 (26... Nxf3+ $2 27. Kh1 $19) (26... Qxf3 27. Qxe6 Nd3 28. Qf5+ Qxf5 29. exf5 $19) 27. Qxe6 Nxf3+ 28. Kh1) 26... Nxf3+ $19 {[%emt 0:00:01]} 27. Kh1 {[%emt 0:00:03]} Ne5 {[%emt 0:00:43]} (27... Nf4 28. Nh5 Nxh5 29. Qxh5 $17) 28. Nxh5 {[%emt 0:01:51]} Qf3+ {[%emt 0:00:01]} 29. Kg1 {[%emt 0:00:01]} Qxh5 {[%emt 0:00:01]} 30. h3 {[%emt 0:00:57]} Rxb2 {[%emt 0:00:08]} 31. Qe7 {[%emt 0:00:21]} Qg6+ {[%emt 0:00:06]} ({Weaker is} 31... Qxh3 32. Qxg7#) (31... Nf3+ $142 32. Kg2 Nh4+ 33. Qxh4 Qxh4 34. Rf1 Qxe4+ 35. Kg3 Qe5+ (35... Rxa2 $2 36. Rc5 $19) 36. Kg2 Qxc7 37. Kf3 Rxa2 38. h4 Qe5 39. Kg2 Qf4 40. Kh1 Ra3 (40... Rxf2 {gets mated.} 41. Rxf2 Qxf2 42. h5 Qe2 43. Kg1 d3 44. Kh1 d2 45. Kg1 d1=Q#) 41. Re1 Qxf2 (41... Qxh4+ {is a self mate.} 42. Kg1 Qg4+ 43. Kf1 Rh3 44. f4 Qf3+ 45. Kg1 Rh1#) 42. Re3 Ra1+ 43. Re1 Rxe1#) 32. Kf1 $19 {[%emt 0:00:04]} Nd3 {[%emt 0:00:07]} 0-1

[Event "CCT Chessable Masters D-II 2024"]
[Site "Online"]
[Date "2024.02.06"]
[Round "6"]
[White "Keymer, Vincent"]
[Black "LevonAronian"]
[Result "1-0"]
[ECO "D02"]
[WhiteElo "2743"]
[BlackElo "2758"]
[Annotator "TA"]
[PlyCount "99"]
[EventDate "2024.01.12"]
[EventType "k.o."]
[EventCountry "NET"]
[SourceTitle "playchess.com"]
[Source "ChessBase"]
[SourceQuality "1"]
[TimeControl "600+2"]

{[%evp 18,99,22,19,36,32,49,39,47,41,40,39,40,41,72,50,56,47,48,50,77,91,106,98,159,149,175,173,157,91,77,74,132,103,173,185,337,338,348,287,330,343,407,281,406,407,458,442,926,437,12836,5337,4810,903,841,528,538,525,584,523,585,570,1008,923,5057,646,610,0,5081,5118,29971,29956,7699,6756,5221,5214,29987,29988,29990,29991,29991,29992,29992,29993]} 1. d4 {[%emt 0:00:03]} Nf6 {[%emt 0:00:04]} 2. Nf3 {[%emt 0:00:06]} g6 {[%emt 0:00:01]} 3. Nbd2 {[%emt 0:00:02]} d5 {[%emt 0:00:03]} 4. b3 {[%emt 0:00:04]} Bg7 {[%emt 0:00:06]} 5. Bb2 {[%emt 0:00:06]} Ne4 {[%emt 0:00:06]} 6. e3 {[%emt 0:00:09] D02: 1 d4 d5 2 Nf3 sidelines, including 2...Nf6 3 g3 and 2...Nf6 3 Bf4.} c5 {[%emt 0:00:02]} 7. Bd3 {[%emt 0:01:19]} Nxd2 {[%emt 0:00:02]} 8. Qxd2 {[%emt 0:00:03]} Nc6 {[%emt 0:00:03]} 9. h3 {[%emt 0:00:05]} O-O {[%emt 0:00:12]} 10. O-O {[%emt 0:00:01]} Qc7 {[%emt 0:01:28]} 11. c4 $146 {[%emt 0:00:34]} ({Predecessor:} 11. Rfd1 Rd8 12. Rac1 b6 13. c4 Nb4 14. cxd5 Nxd3 15. Qxd3 Rxd5 16. e4 Rd8 17. Qe2 {0-1 Crecente Penalba,J (2134)-Fernandez Barrera,V (2326) Almansa op 5th 2010 (5)}) 11... dxc4 {[%emt 0:00:10]} 12. bxc4 {[%emt 0:00:01]} Na5 {[%emt 0:02:19]} 13. d5 {[%emt 0:00:16]} Bxb2 {[%emt 0:00:03]} 14. Qxb2 {[%emt 0:00:03]} f6 {[%emt 0:00:00]} 15. Nd2 {[%emt 0:01:20]} Rb8 {[%emt 0:00:30]} 16. f4 {[%emt 0:00:52]} Bd7 {[%emt 0:00:11]} 17. a4 {[%emt 0:00:47]} b6 {[%emt 0:00:02]} 18. f5 {[%emt 0:01:21]} gxf5 {[%emt 0:00:11]} 19. Bxf5 {[%emt 0:00:02]} Rf7 {[%emt 0:00:03]} 20. e4 {[%emt 0:00:09]} Rg7 {[%emt 0:00:23]} (20... Bxf5 $142 21. Rxf5 Qg3) 21. e5 $1 $16 {[%emt 0:00:15]} fxe5 {[%emt 0:00:06]} 22. Bxd7 {[%emt 0:00:06]} Qxd7 {[%emt 0:00:01]} 23. Qxe5 {[%emt 0:00:01]} (23. Ra3 $142) 23... Qd6 $16 {[%emt 0:00:06]} 24. Qe2 {[%emt 0:00:07]} Kh8 {[%emt 0:00:23]} (24... Rf8 $142) 25. Ra3 {[%emt 0:00:54]} Rbg8 {[%emt 0:00:02]} (25... e6 $16 {was necessary.}) 26. Rf2 $18 {[%emt 0:00:00]} e6 $2 {[%emt 0:00:57] [#]} (26... Qh6 {was called for.} 27. Re3 e6) 27. Ne4 $1 $18 {[%emt 0:00:28]} ({Weaker is} 27. Qxe6 Qxe6 28. dxe6 Re8 $14) (27. dxe6 Nc6 $16) 27... Qe5 {[%emt 0:00:10] [#]} 28. Nf6 $1 {[%emt 0:00:37]} Qxe2 {[%emt 0:00:26]} 29. Rxe2 {[%emt 0:00:00]} Nxc4 {[%emt 0:00:01]} 30. Nxg8 {[%emt 0:00:31]} Rxg8 {[%emt 0:02:29]} (30... Nxa3 {might work better.} 31. Nf6 Nc2 32. Rxc2 exd5) 31. Rd3 $18 {[%emt 0:00:03]} Rd8 {[%emt 0:00:10]} 32. Rxe6 {[%emt 0:00:03]} Nb2 {[%emt 0:00:01]} (32... Nd6 $142 33. Rf3 Kg8) 33. Rd2 {[%emt 0:00:15]} (33. Rg3 $142 {Threatening mate with d6.} Nc4 34. d6 Nxd6 35. Rd3) 33... Nxa4 {[%emt 0:00:09]} (33... Nc4 $142) 34. d6 $18 {[%emt 0:00:06]} Kg7 {[%emt 0:00:01]} 35. Re7+ {[%emt 0:00:03]} (35. d7 $142 Kf7 36. Re4) 35... Kf6 $18 {[%emt 0:00:04]} 36. Rxa7 {[%emt 0:00:02]} Nc3 {[%emt 0:00:04]} 37. Rxh7 {[%emt 0:00:13]} b5 {[%emt 0:00:01]} 38. Rc7 {[%emt 0:00:02]} c4 {[%emt 0:00:02]} 39. d7 {[%emt 0:00:04]} Ke7 {[%emt 0:00:04]} 40. h4 {[%emt 0:00:02]} Na4 {[%emt 0:00:02]} 41. Rd5 {[%emt 0:00:02]} (41. h5 $142 c3 42. Rd4) 41... Nc3 $18 {[%emt 0:00:02]} 42. Rd2 {[%emt 0:00:03]} (42. Rdc5 $142) 42... Na4 $1 $18 {[%emt 0:00:01]} 43. h5 {[%emt 0:00:01]} c3 {[%emt 0:00:00]} 44. Rd4 {[%emt 0:00:01]} Ke6 {[%emt 0:00:05]} 45. h6 {[%emt 0:00:01]} Ke5 {[%emt 0:00:00]} 46. Rd1 {[%emt 0:00:05]} b4 {[%emt 0:00:02]} 47. Rc8 {[%emt 0:00:00]} Rxd7 {[%emt 0:00:04]} 48. Rxd7 {[%emt 0:00:01]} Nb6 {[%emt 0:00:00]} 49. h7 {[%emt 0:00:02]} Nxd7 {[%emt 0:00:03]} 50. h8=Q+ {[%emt 0:00:00]} 1-0

[Event "CCT Chessable Masters D-II 2024"]
[Site "Online"]
[Date "2024.02.03"]
[Round "51"]
[White "AnishGiri"]
[Black "Svidler, Peter"]
[Result "1-0"]
[ECO "A34"]
[WhiteElo "2735"]
[BlackElo "2689"]
[Annotator "TA"]
[PlyCount "83"]
[EventDate "2024.01.12"]
[EventType "k.o."]
[EventCountry "NET"]
[SourceTitle "playchess.com"]
[Source "ChessBase"]
[SourceQuality "1"]
[TimeControl "600+2"]

{[%evp 9,83,13,8,0,0,0,36,14,21,0,0,0,12,12,22,36,17,17,43,62,71,59,80,79,90,82,91,90,111,97,83,85,136,133,134,136,150,146,146,142,135,131,145,122,127,104,137,104,104,104,159,111,111,111,111,110,111,112,112,94,94,94,94,68,454,425,427,367,800,816,754,1008,29975,29975,29975,29971]} 1. Nf3 {[%emt 0:00:03]} c5 {[%emt 0:00:06]} 2. c4 {[%emt 0:00:05]} Nc6 {[%emt 0:00:03]} 3. Nc3 {[%emt 0:00:02]} e5 {[%emt 0:00:04][%cal Be7e5,Be5e4][%mdl 32]} 4. e3 {[%emt 0:00:02]} Nf6 {[%emt 0:00:04]} 5. d4 {[%emt 0:00:01]} e4 {[%emt 0:00:02]} 6. d5 {[%emt 0:00:07]} exf3 {[%emt 0:00:08]} 7. dxc6 {[%emt 0:00:01]} bxc6 {[%emt 0:01:10]} 8. e4 {[%emt 0:00:19] White is slightly better.} Qc7 {[%emt 0:00:03]} 9. gxf3 {[%emt 0:00:29]} Bd6 {[%emt 0:00:59][%cal Oa8b8]} 10. Be3 {[%emt 0:00:03]} O-O {[%emt 0:00:40][%cal Od6e5]} 11. Qd2 {[%emt 0:00:35]} Re8 {[%emt 0:00:22][%cal Od6e5]} (11... Be5 $5) 12. O-O-O {[%emt 0:00:17]} Be5 {[%emt 0:00:02]} 13. Rg1 $36 {[%emt 0:00:13][%mdl 2048] Threatens to win with f4. White has some pressure.} g6 {[%emt 0:00:09]} 14. Rg5 {[%emt 0:00:58]} d6 {[%emt 0:01:02][%cal Oc8e6] [#]} 15. Bf4 $1 {[%emt 0:01:05]} Qe7 {[%emt 0:03:33]} 16. Bxe5 {[%emt 0:00:40]} dxe5 {[%emt 0:00:01]} 17. Qd6 {[%emt 0:00:05]} h6 {[%emt 0:00:19]} 18. Rg1 {[%emt 0:00:33] White is much more active.} (18. Qxc6 $2 {too greedy.} Bb7 $19) 18... Kg7 {[%emt 0:00:52]} 19. Qxe7 {[%emt 0:01:31]} (19. Qxc6 {keeps more tension.} Be6 20. Qd6 Qb7 21. Qxc5 Rac8 22. Qb5) 19... Rxe7 {[%emt 0:00:02]} 20. Na4 {[%emt 0:00:00]} Nd7 {[%emt 0:00:18]} (20... Rd7 $142) 21. Rd6 $16 {[%emt 0:00:11]} Re6 {[%emt 0:00:08]} 22. Rxe6 {[%emt 0:01:30]} fxe6 {[%emt 0:00:01]} 23. h4 {[%emt 0:00:01]} Kf6 {[%emt 0:00:01]} 24. b3 {[%emt 0:00:06]} Bb7 {[%emt 0:00:02]} 25. Kd2 {[%emt 0:00:03]} Rg8 {[%emt 0:00:05]} 26. Bh3 {[%emt 0:00:02]} g5 {[%emt 0:00:03]} 27. hxg5+ {[%emt 0:00:31]} Rxg5 {[%emt 0:00:08]} 28. Rxg5 {[%emt 0:00:06]} hxg5 {[%emt 0:00:02][%mdl 4096] Endgame. KBN-KBN} 29. Kc3 {[%emt 0:00:12]} a5 {[%emt 0:00:05]} (29... Bc8 $142) 30. Nb2 {[%emt 0:00:38]} ({Better is} 30. Kb2) 30... Ke7 {[%emt 0:00:02]} 31. Nd1 {[%emt 0:00:09]} Kd6 {[%emt 0:00:04]} 32. Ne3 {[%emt 0:00:01]} Nf6 {[%emt 0:00:04]} 33. Bg4 {[%emt 0:00:06]} Bc8 {[%emt 0:00:05]} 34. Kb2 {[%emt 0:00:02] And now Ka3 would win.} Bd7 {[%emt 0:00:01]} 35. Ka3 {[%emt 0:00:01]} Kc7 {[%emt 0:00:01]} 36. Nd1 {[%emt 0:00:01] [#] aiming for Ka4.} Ng8 $2 {[%emt 0:00:07][%mdl 8192] This costs Black the game.} (36... Be8 $1 $14) 37. Nb2 {[%emt 0:00:04]} Ne7 {[%emt 0:00:04]} 38. Nd3 {[%emt 0:00:00]} Kd6 $2 {[%emt 0:00:09]} (38... Ng6 39. Nxc5 Bc8) 39. Ka4 $18 {[%emt 0:00:01]} Ng6 {[%emt 0:00:01]} 40. Kxa5 {[%emt 0:00:01]} Nf4 {[%emt 0:00:01]} 41. Nxf4 {[%emt 0:00:03]} exf4 {[%emt 0:00:02]} 42. Kb6 {[%emt 0:00:00] Weighted Error Value: White=0.09 (flawless) /Black=0.53.  Loses game:     	---       	Black=1      Mistake:       	White=1     	Black=3      Inaccurate:     	---       	Black=3      OK:         	White=12    	Black=9      Best:        	White=2     	Black=3      Strong:       	White=1     	---} 1-0

[Event "CCT Chessable Masters D-II 2024"]
[Site "Online"]
[Date "2024.02.03"]
[Round "51"]
[White "Yu, Yangyi"]
[Black "Micki-taryan"]
[Result "1/2-1/2"]
[ECO "A20"]
[WhiteElo "2720"]
[BlackElo "2620"]
[Annotator "TA"]
[PlyCount "85"]
[EventDate "2024.01.12"]
[EventType "k.o."]
[EventCountry "NET"]
[SourceTitle "playchess.com"]
[Source "ChessBase"]
[SourceQuality "1"]
[TimeControl "600+2"]

{[%evp 13,85,-2,16,-9,0,-35,-39,-31,0,0,11,11,10,10,12,-7,4,13,21,13,23,22,26,0,0,11,11,12,14,0,0,0,23,16,14,12,14,6,11,12,12,3,5,1,4,0,0,-8,-8,-8,0,0,0,-8,-8,-8,-8,-8,0,0,0,0,0,0,0,0,0,0,0,0,0,0,0,0]} 1. c4 {[%emt 0:00:06]} e5 {[%emt 0:00:07]} 2. a3 {[%emt 0:00:02]} Nf6 {[%emt 0:00:10]} 3. d3 {[%emt 0:00:03]} d5 {[%emt 0:00:06]} 4. cxd5 {[%emt 0:00:01]} Nxd5 {[%emt 0:00:00]} 5. Nf3 {[%emt 0:00:01]} Nc6 {[%emt 0:00:03]} 6. e3 {[%emt 0:00:00] A20: English Opening: 1...e5.} a5 {[%emt 0:00:13]} 7. b3 {[%emt 0:00:07]} g5 {[%emt 0:00:26]} 8. Bb2 {[%emt 0:00:25]} Bg7 {[%emt 0:00:01]} 9. d4 $146 {[%emt 0:00:05]} ({Predecessor:} 9. Qc2 O-O 10. Nc3 g4 11. Nd2 Nde7 12. Be2 Ng6 13. h3 g3 14. fxg3 f5 15. Nc4 {0-1 Erigaisi,A (2567)-Martirosyan,H (2632) Junior Speed Final blitz 2021 (2.12)}) 9... exd4 {[%emt 0:00:35]} 10. Nxd4 {[%emt 0:00:00]} Nxd4 {[%emt 0:00:36]} (10... Nf4 {is more complex.} 11. Nxc6 Qxd1+ 12. Kxd1 Bxb2 13. Ra2 Bf6) 11. Bxd4 {[%emt 0:00:00]} Bxd4 {[%emt 0:00:05]} 12. Qxd4 {[%emt 0:00:02]} Qf6 {[%emt 0:00:10]} 13. Qxf6 {[%emt 0:00:22]} Nxf6 {[%emt 0:00:00]} 14. Nd2 {[%emt 0:00:09]} Be6 {[%emt 0:00:38]} 15. Bc4 {[%emt 0:00:03]} Bxc4 {[%emt 0:00:13]} 16. Nxc4 {[%emt 0:00:00]} Ke7 {[%emt 0:00:03]} 17. Ke2 {[%emt 0:00:29]} Rhd8 {[%emt 0:00:03]} 18. Rac1 {[%emt 0:00:13]} Rd5 {[%emt 0:00:58]} 19. f3 {[%emt 0:00:08]} Rb5 {[%emt 0:00:04]} 20. Nd2 {[%emt 0:00:58]} c6 {[%emt 0:00:02]} 21. Rc4 {[%emt 0:00:11]} h5 {[%emt 0:00:12]} 22. Rhc1 {[%emt 0:00:23]} Rd8 {[%emt 0:00:13]} 23. Rc5 {[%emt 0:00:13]} Rd5 {[%emt 0:00:01]} 24. Rxb5 {[%emt 0:00:10]} Rxb5 {[%emt 0:00:00]} 25. a4 {[%emt 0:00:07]} Re5 {[%emt 0:00:17]} 26. g3 {[%emt 0:00:20]} Nd7 {[%emt 0:00:16]} 27. f4 {[%emt 0:01:07]} gxf4 $1 {[%emt 0:00:02]} 28. gxf4 {[%emt 0:00:00]} Rc5 {[%emt 0:00:01]} 29. Rc4 {[%emt 0:00:13]} f5 {[%emt 0:00:25]} 30. e4 {[%emt 0:00:14]} b5 {[%emt 0:00:27]} 31. Rd4 {[%emt 0:00:37]} Nf6 {[%emt 0:00:12]} 32. axb5 {[%emt 0:00:34]} cxb5 {[%emt 0:00:11]} 33. b4 {[%emt 0:00:05]} axb4 {[%emt 0:00:16]} 34. Rxb4 {[%emt 0:00:01]} fxe4 {[%emt 0:00:10]} 35. Nxe4 {[%emt 0:00:02]} Nxe4 {[%emt 0:00:28]} 36. Rxe4+ {[%emt 0:00:00]} Kf6 {[%emt 0:00:00]} 37. Rb4 {[%emt 0:00:38]} Kf5 {[%emt 0:00:19]} 38. Kf3 {[%emt 0:00:05]} h4 {[%emt 0:00:10]} 39. h3 $1 {[%emt 0:00:12]} Rc3+ {[%emt 0:00:08]} 40. Kg2 {[%emt 0:00:09]} Rc5 {[%emt 0:00:03]} 41. Kf3 $1 {[%emt 0:00:01]} Rc3+ {[%emt 0:00:01]} 42. Kg2 $1 {[%emt 0:00:01]} Rc5 {[%emt 0:00:00]} 43. Kf3 {[%emt 0:00:01]} 1/2-1/2

[Event "CCT Chessable Masters D-II 2024"]
[Site "Online"]
[Date "2024.02.03"]
[Round "51"]
[White "Svidler, Peter"]
[Black "AnishGiri"]
[Result "1-0"]
[ECO "A01"]
[WhiteElo "2689"]
[BlackElo "2741"]
[Annotator "TA"]
[PlyCount "67"]
[EventDate "2024.01.12"]
[EventType "k.o."]
[EventCountry "NET"]
[SourceTitle "playchess.com"]
[Source "ChessBase"]
[SourceQuality "1"]
[TimeControl "600+2"]

{[%evp 9,67,0,14,-6,20,16,11,6,0,0,5,14,43,20,30,27,37,42,40,36,61,44,37,25,93,107,109,89,146,132,133,124,147,149,165,159,162,159,166,167,156,158,157,152,29969,29964,29975,127,825,835,732,691,1181,1167,29987,29988,29989,29990,29990,29989]} 1. b3 {[%emt 0:00:08]} d5 {[%emt 0:00:10]} 2. Bb2 {[%emt 0:00:02]} Nf6 {[%emt 0:00:07]} 3. e3 {[%emt 0:00:05]} c5 {[%emt 0:00:33]} 4. Bb5+ {[%emt 0:00:43]} Bd7 {[%emt 0:00:06]} 5. Bxd7+ {[%emt 0:00:01]} Nbxd7 {[%emt 0:00:10]} 6. f4 {[%emt 0:00:01]} g6 {[%emt 0:00:07]} 7. c4 {[%emt 0:00:31]} dxc4 {[%emt 0:01:09]} 8. bxc4 {[%emt 0:00:02] The position is equal.} Bg7 {[%emt 0:00:01]} 9. Nf3 {[%emt 0:00:05]} O-O {[%emt 0:00:00][%cal Oe7e5]} 10. O-O {[%emt 0:00:05]} a6 {[%emt 0:00:15]} 11. a4 {[%emt 0:00:10]} b6 {[%emt 0:00:01]} 12. Qe2 {[%emt 0:00:10]} Qc7 {[%emt 0:00:05]} 13. Nc3 {[%emt 0:00:32]} e6 {[%emt 0:00:22][%cal Of6e4]} 14. Rab1 {[%emt 0:00:10]} Rab8 {[%emt 0:00:08]} 15. g3 {[%emt 0:00:06]} Ne8 {[%emt 0:00:37]} 16. e4 {[%emt 0:00:05]} Qc6 {[%emt 0:00:09]} (16... Bd4+ $11 17. Nxd4 cxd4) 17. e5 $16 {[%emt 0:00:10] White stays focused until the end.} Nc7 {[%emt 0:00:01]} 18. Ba1 {[%emt 0:00:16]} f6 {[%emt 0:00:12]} (18... Rfd8 $142) 19. exf6 {[%emt 0:01:28]} Bxf6 {[%emt 0:00:10]} 20. Ne4 {[%emt 0:00:34]} Bxa1 {[%emt 0:00:11]} 21. Rxa1 {[%emt 0:00:00]} b5 {[%emt 0:00:10]} 22. axb5 {[%emt 0:00:05]} axb5 {[%emt 0:00:00]} 23. Ne5 {[%emt 0:00:09]} Nxe5 {[%emt 0:00:05]} 24. fxe5 {[%emt 0:00:00] Threatens to win with Nf6+.} bxc4 {[%emt 0:00:26]} 25. Nf6+ {[%emt 0:00:08]} (25. Qxc4 Rxf1+ 26. Rxf1 Ne8 27. Qxc5 (27. Nxc5 Ng7 $16) 27... Qxc5+ 28. Nxc5 Rb6) 25... Kg7 {[%emt 0:00:03]} 26. Qg4 {[%emt 0:01:05][%cal Og4h4] Black must now prevent Qh4! White has more active pieces.} (26. Qxc4 Rb4 27. Qd3 Rb7 $16) 26... Kh8 $2 {[%emt 0:02:04]} (26... Nd5 $16) 27. Qh4 {[%emt 0:00:32][%csl Gf6][%cal Rh4h7]} ({Not} 27. Qxc4 Rf7 28. Rfc1 Nd5 $16) 27... Rf7 {[%emt 0:00:01]} 28. Ne4 $2 {[%emt 0:00:21]} (28. Qxc4 Nb5 $16) (28. Qh6 $1 {mates} Rbf8 29. Rf4 Rg8 30. Nxg8 Qe8 31. Rxf7 Qxf7 32. Nf6 Qg7 33. Qxg7+ Kxg7 34. Ra7) 28... Rbf8 $2 {[%emt 0:00:45][%mdl 8192]} (28... Rg7 $16) 29. Rxf7 $18 {[%emt 0:00:03]} Rxf7 {[%emt 0:00:01] [#]} 30. Qd8+ $1 {[%emt 0:00:31]} Kg7 {[%emt 0:00:05] [#]} 31. Ng5 {[%emt 0:00:41]} ({And not} 31. Nd6 Rf8 32. Qh4 c3 33. Qe7+ (33. dxc3 Qf3 $11) 33... Kg8 34. dxc3 Qf3 35. Qxc7 Qxc3 $11 (35... Qf2+ 36. Kh1 $11)) 31... Rd7 {[%emt 0:02:15]} 32. Qf6+ {[%emt 0:00:03] White mates.} Kg8 {[%emt 0:00:01]} 33. Rf1 {[%emt 0:00:07][%csl Gf1][%cal Rf6f8]} Qa8 {[%emt 0:00:04]} 34. Nxe6 {[%emt 0:00:09] Weighted Error Value: White=0.20 (precise) /Black=0.59.  Loses game:     	---       	Black=1      Mistake:       	---       	Black=2      Inaccurate:     	---       	Black=2      OK:         	White=13    	Black=10     Best:        	White=1     	Black=1} 1-0